lending/lending_fUSD_20250121
["ID","MTS","AMOUNT","RATE_DAILY","PERIOD"]
[349833469,1737455451793,-500.0,0.00020719,2]
[349833470,1737455451807,-260.59387282,0.00020719,2]
[349833471,1737455451820,-500.0,0.00020719,2]
[349833472,1737455451831,-501.27623828,0.00020719,2]
[349833473,1737455451841,-505.34419201,0.00020719,2]
[349833474,1737455451852,-500.0,0.00020719,2]
[349833475,1737455451864,-507.80571988,0.00020719,2]
[349833476,1737455451878,-500.0,0.00020719,2]
[349833477,1737455451890,-500.0,0.00020719,2]
[349833478,1737455451902,-500.0,0.00020719,2]
[349833479,1737455451913,-504.93232363,0.00020719,2]
[349833480,1737455451925,-502.217568,0.00020719,2]
[349833481,1737455451936,-500.78892715,0.00020719,2]
[349833482,1737455451948,-510.81416729,0.00020719,2]
[349833483,1737455451959,-502.68868577,0.00020719,2]
[349833484,1737455451971,-502.6235038,0.00020719,2]
[349833485,1737455451982,-500.0,0.00020719,2]
[349833486,1737455451994,-500.0,0.00020719,2]
[349833487,1737455452005,-264.50407099,0.00020719,2]
[349833488,1737455452016,-504.76860549,0.00020719,2]
[349833489,1737455452028,-500.0,0.00020719,2]
[349833490,1737455452039,-500.0,0.00020719,2]
[349833491,1737455452050,-500.0,0.00020719,2]
[349833492,1737455452061,-500.0,0.00020719,2]
[349833493,1737455452073,-500.0,0.00020719,2]
[349833494,1737455452084,-508.44848657,0.00020719,2]
[349833495,1737455452095,-500.0,0.00020719,2]
[349833496,1737455452106,-500.0,0.00020719,2]
[349833497,1737455452118,-500.0,0.00020719,2]
[349833498,1737455452129,-503.00253246,0.00020719,2]
[349833499,1737455452140,-500.0,0.00020719,2]
[349833500,1737455452153,-504.07261432,0.00020719,2]
[349833501,1737455452164,-500.0,0.00020719,2]
[349833502,1737455452175,-500.0,0.00020719,2]
[349833503,1737455452186,-632.39767426,0.00020719,2]
[349833504,1737455452197,-500.0,0.00020719,2]
[349833505,1737455452208,-500.0,0.00020719,2]
[349833506,1737455452220,-500.0,0.00020719,2]
[349833507,1737455452231,-500.0,0.00020719,2]
[349833508,1737455452243,-501.84089132,0.00020719,2]
[349833509,1737455452254,-502.42584988,0.00020719,2]
[349833510,1737455452265,-534.84,0.00020719,2]
[349833511,1737455452276,-502.82624539,0.00020719,2]
[349833512,1737455452287,-500.0,0.00020719,2]
[349833513,1737455452298,-503.2148402,0.00020719,2]
[349833514,1737455452309,-500.0,0.00020719,2]
[349833515,1737455452320,-330.56328008,0.00020719,2]
[349833516,1737455452331,-504.58326666,0.00020719,2]
[349833517,1737455452342,-500.0,0.00020719,2]
[349833518,1737455452353,-501.94683559,0.00020719,2]
[349833519,1737455452363,-512.42741537,0.00020719,2]
[349833520,1737455452374,-500.0,0.00020719,2]
[349833521,1737455452385,-504.19548673,0.00020719,2]
[349833522,1737455452396,-500.0,0.00020719,2]
[349833523,1737455452408,-500.0,0.00020719,2]
[349833524,1737455452419,-504.21148236,0.00020719,2]
[349833525,1737455452433,-500.0,0.00020719,2]
[349833526,1737455452445,-505.45965227,0.00020719,2]
[349833527,1737455452456,-500.0,0.00020719,2]
[349833528,1737455452467,-501.43952309,0.00020719,2]
[349833529,1737455452479,-500.0,0.00020719,2]
[349833530,1737455452490,-505.84031339,0.00020719,2]
[349833531,1737455452501,-507.19347406,0.00020719,2]
[349833532,1737455452513,-503.1076112,0.00020719,2]
[349833533,1737455452524,-502.5134542,0.00020719,2]
[349833534,1737455452535,-523.15074134,0.00020719,2]
[349833535,1737455452546,-500.0,0.00020719,2]
[349833536,1737455452558,-500.0,0.00020719,2]
[349833537,1737455452569,-500.0,0.00020719,2]
[349833538,1737455452580,-500.0,0.00020719,2]
[349833539,1737455452591,-295.70782424,0.00020719,2]
[349833540,1737455452603,-500.0,0.00020719,2]
[349833541,1737455452614,-500.0,0.00020719,2]
[349833542,1737455452626,-500.0,0.00020719,2]
[349833543,1737455452638,-500.0,0.00020719,2]
[349833544,1737455452649,-534.45241708,0.00020719,2]
[349833545,1737455452662,-502.37110894,0.00020719,2]
[349833546,1737455452674,-504.5463699,0.00020719,2]
[349833547,1737455452685,-500.0,0.00020719,2]
[349833548,1737455452696,-506.03113378,0.00020719,2]
[349833549,1737455452707,-500.0,0.00020719,2]
[349833550,1737455452718,-490.87246993,0.00020719,2]
[349833551,1737455452729,-500.0,0.00020719,2]
[349833552,1737455452740,-500.0,0.00020719,2]
[349833553,1737455452751,-219.43683691,0.00020719,2]
[349833554,1737455452762,-500.0,0.00020719,2]
[349833555,1737455452773,-500.0,0.00020719,2]
[349833556,1737455452784,-500.0,0.00020719,2]
[349833557,1737455452795,-500.0,0.00020719,2]
[349833558,1737455452806,-518.80489699,0.00020719,2]
[349833559,1737455452818,-500.0,0.00020719,2]
[349833560,1737455452829,-511.71926902,0.00020719,2]
[349833561,1737455452840,-500.0,0.00020719,2]
[349833562,1737455452851,-500.0,0.00020719,2]
[349833563,1737455452862,-500.0,0.00020719,2]
[349833564,1737455452873,-500.0,0.00020719,2]
[349833565,1737455452884,-500.0,0.00020719,2]
[349833566,1737455452895,-500.0,0.00020719,2]
[349833567,1737455452908,-500.0,0.00020719,2]
[349833568,1737455452919,-502.62828009,0.00020719,2]
[349833569,1737455452931,-500.0,0.00020719,2]
[349833570,1737455452941,-500.0,0.00020719,2]
[349833571,1737455452952,-500.0,0.00020719,2]
[349833572,1737455452963,-500.0,0.00020719,2]
[349833573,1737455452974,-500.0,0.00020719,2]
[349833574,1737455452985,-500.0,0.00020719,2]
[349833575,1737455452996,-503.20349476,0.00020719,2]
[349833576,1737455453007,-500.0,0.00020719,2]
[349833577,1737455453018,-500.0,0.00020719,2]
[349833578,1737455453030,-500.0,0.00020719,2]
[349833579,1737455453040,-504.7623196,0.00020719,2]
[349833580,1737455453051,-514.39431847,0.00020719,2]
[349833581,1737455453061,-500.0,0.00020719,2]
[349833582,1737455453072,-505.68054413,0.00020719,2]
[349833583,1737455453083,-506.02936947,0.00020719,2]
[349833584,1737455453094,-506.82192045,0.00020719,2]
[349833585,1737455453105,-504.48820357,0.00020719,2]
[349833586,1737455453116,-500.0,0.00020719,2]
[349833587,1737455453127,-500.0,0.00020719,2]
[349833588,1737455453138,-509.64874346,0.00020719,2]
[349833589,1737455453149,-502.81700645,0.00020719,2]
[349833590,1737455453160,-502.56847578,0.00020719,2]
[349833591,1737455453170,-500.0,0.00020719,2]
[349833592,1737455453182,-500.0,0.00020719,2]
[349833593,1737455453193,-502.32762206,0.00020719,2]
[349833594,1737455453204,-500.0,0.00020719,2]
[349833595,1737455453216,-507.74723725,0.00020719,2]
[349833596,1737455453227,-500.0,0.00020719,2]
[349833597,1737455453239,-500.0,0.00020719,2]
[349833598,1737455453250,-507.86516067,0.00020719,2]
[349833599,1737455453476,-501.40852191,0.00020719,2]
[349833600,1737455453504,-503.03008531,0.00020719,2]
[349833601,1737455453517,-501.80790198,0.00020719,2]
[349833602,1737455453527,-500.69561812,0.00020719,2]
[349833603,1737455453536,-506.04000184,0.00020719,2]
[349833604,1737455453546,-500.0,0.00020719,2]
[349833605,1737455453555,-500.0,0.00020719,2]
[349833606,1737455453564,-500.0,0.00020719,2]
[349833607,1737455453574,-501.26794062,0.00020719,2]
[349833608,1737455453584,-500.0,0.00020719,2]
[349833609,1737455453594,-500.0,0.00020719,2]
[349833610,1737455453603,-500.0,0.00020719,2]
[349833611,1737455453612,-500.0,0.00020719,2]
[349833612,1737455453622,-502.52943397,0.00020719,2]
[349833613,1737455453631,-503.78174763,0.00020719,2]
[349833614,1737455453640,-500.0,0.00020719,2]
[349833615,1737455453651,-503.87073852,0.00020719,2]
[349833616,1737455453660,-500.0,0.00020719,2]
[349833617,1737455453669,-501.46607153,0.00020719,2]
[349833618,1737455453679,-500.0,0.00020719,2]
[349833619,1737455453688,-194.84976122,0.00020719,2]
[349833620,1737455453697,-758.65,0.00020719,2]
[349833621,1737455453706,-500.0,0.00020719,2]
[349833622,1737455453715,-504.92179651,0.00020719,2]
[349833623,1737455453725,-500.0,0.00020719,2]
[349833624,1737455453734,-500.0,0.00020719,2]
[349833625,1737455453743,-300.0,0.00020719,2]
[349833626,1737455453752,-500.0,0.00020719,2]
[349833627,1737455453762,-500.0,0.00020719,2]
[349833628,1737455453771,-500.0,0.00020719,2]
[349833629,1737455453781,-632.0,0.00020719,2]
[349833630,1737455453791,-500.0,0.00020719,2]
[349833631,1737455453800,-1799.36,0.00020719,2]
[349833632,1737455453809,-503.89615408,0.00020719,2]
[349833633,1737455453819,-500.0,0.00020719,2]
[349833634,1737455453828,-500.0,0.00020719,2]
[349833635,1737455453838,-500.0,0.00020719,2]
[349833636,1737455453847,-424.18851007,0.00020719,2]
[349833637,1737455453856,-449.12123071,0.00020719,2]
[349833638,1737455453866,-500.0,0.00020719,2]
[349833639,1737455453875,-500.0,0.00020719,2]
[349833640,1737455453884,-500.0,0.00020719,2]
[349833641,1737455453894,-500.0,0.00020719,2]
[349833642,1737455453905,-500.0,0.00020719,2]
[349833643,1737455453914,-500.0,0.00020719,2]
[349833644,1737455453924,-510.7,0.00020719,2]
[349833645,1737455453933,-2685.0,0.00020719,2]
[349833646,1737455453942,-500.0,0.00020719,2]
[349833647,1737455453951,-519.79160225,0.00020719,2]
[349833648,1737455453960,-501.18016607,0.00020719,2]
[349833649,1737455453969,-300.0,0.00020719,2]
[349833650,1737455453980,-500.0,0.00020719,2]
[349833651,1737455453990,-500.0,0.00020719,2]
[349833652,1737455453999,-528.56,0.00020719,2]
[349833653,1737455454008,-500.0,0.00020719,2]
[349833654,1737455454018,-500.0,0.00020719,2]
[349833655,1737455454028,-500.0,0.00020719,2]
[349833656,1737455454038,-500.0,0.00020719,2]
[349833657,1737455454047,-500.0,0.00020719,2]
[349833658,1737455454057,-500.0,0.00020719,2]
[349833659,1737455454066,-500.0,0.00020719,2]
[349833660,1737455454075,-500.0,0.00020719,2]
[349833661,1737455454085,-500.7520533,0.00020719,2]
[349833662,1737455454094,-500.72675211,0.00020719,2]
[349833663,1737455454104,-1519.25,0.00020719,2]
[349833664,1737455454113,-500.0,0.00020719,2]
[349833665,1737455454123,-500.0,0.00020719,2]
[349833666,1737455454132,-500.0,0.00020719,2]
[349833667,1737455454141,-500.0,0.00020719,2]
[349833668,1737455454151,-500.0,0.00020719,2]
[349833669,1737455454160,-500.0,0.00020719,2]
[349833670,1737455454170,-500.0,0.00020719,2]
[349833671,1737455454179,-500.0,0.00020719,2]
[349833672,1737455454188,-500.0,0.00020719,2]
[349833673,1737455454198,-500.0,0.00020719,2]
[349833674,1737455454207,-500.0,0.00020719,2]
[349833675,1737455454216,-500.0,0.00020719,2]
[349833676,1737455454225,-500.0,0.00020719,2]
[349833677,1737455454234,-1429.36,0.00020719,2]
[349833678,1737455454247,-500.0,0.00020719,2]
[349833679,1737455454257,-500.0,0.00020719,2]
[349833680,1737455454267,-500.0,0.00020719,2]
[349833681,1737455454276,-500.0,0.00020719,2]
[349833682,1737455454286,-500.0,0.00020719,2]
[349833683,1737455454295,-500.0,0.00020719,2]
[349833684,1737455454304,-500.0,0.00020719,2]
[349833685,1737455454313,-500.0,0.00020719,2]
[349833686,1737455454322,-500.0,0.00020719,2]
[349833687,1737455454331,-500.0,0.00020719,2]
[349833688,1737455454340,-500.0,0.00020719,2]
[349833689,1737455454350,-500.0,0.00020719,2]
[349833690,1737455454359,-500.0,0.00020719,2]
[349833691,1737455454369,-500.0,0.00020719,2]
[349833692,1737455454379,-500.0,0.00020719,2]
[349833693,1737455454388,-500.0,0.00020719,2]
[349833694,1737455454397,-150.0,0.00020719,2]
[349833695,1737455454408,-500.0,0.00020719,2]
[349833696,1737455454417,-500.0,0.00020719,2]
[349833697,1737455454428,-3609.70582289,0.00020719,2]
[349833698,1737455454439,-500.0,0.00020719,2]
[349833699,1737455454448,-500.0,0.00020719,2]
[349833700,1737455454457,-500.0,0.00020719,2]
[349833701,1737455454467,-500.0,0.00020719,2]
[349833702,1737455454476,-1315.93,0.00020719,2]
[349833703,1737455454486,-500.0,0.00020719,2]
[349833704,1737455454495,-500.0,0.00020719,2]
[349833705,1737455454504,-500.0,0.00020719,2]
[349833706,1737455454513,-500.0,0.00020719,2]
[349833707,1737455454522,-572.22,0.00020719,2]
[349833708,1737455454531,-500.43112935,0.00020719,2]
[349833709,1737455454541,-501.52152061,0.00020719,2]
[349833710,1737455454549,-161.559,0.0002073,2]
[349833711,1737455454559,-396.09643431,0.00020746,2]
[349833712,1737455454568,-150.0,0.0002075,2]
[349833713,1737455454577,-150.0,0.00020757,2]
[349833714,1737455454586,-1208.63,0.00020758,2]
[349833715,1737455454595,-720.29,0.00020758,2]
[349833716,1737455454605,-1135.55,0.00020758,2]
[349833717,1737455454614,-500.0,0.00020758,2]
[349833718,1737455454623,-5596.85,0.00020758,2]
[349833719,1737455454632,-500.0,0.00020758,2]
[349833720,1737455454641,-500.0,0.00020758,2]
[349833721,1737455454652,-516.225877,0.00020758,2]
[349833722,1737455454662,-786.72,0.00020758,2]
[349833723,1737455454671,-771.63,0.00020758,2]
[349833724,1737455454680,-543.76,0.00020758,2]
[349833725,1737455454690,-1177.6,0.00020758,2]
[349833726,1737455454699,-798.31,0.00020758,2]
[349833727,1737455454708,-358.333386,0.00020758,2]
[349833728,1737455454718,-1292.4,0.00020758,2]
[349833729,1737455454727,-941.38,0.00020758,2]
[349833730,1737455454736,-500.0,0.00020758,2]
[349833731,1737455454746,-500.0,0.00020758,2]
[349833732,1737455454756,-160.021937,0.00020758,2]
[349833733,1737455454765,-2147.55,0.00020758,2]
[349833734,1737455454775,-1700.18,0.00020758,2]
[349833735,1737455454784,-801.99,0.00020758,2]
[349833736,1737455454793,-987.08,0.00020758,2]
[349833737,1737455454803,-1814.27,0.00020758,2]
[349833738,1737455454812,-2064.99,0.00020758,2]
[349833739,1737455454822,-500.0,0.00020758,2]
[349833740,1737455454831,-551.16,0.00020758,2]
[349833741,1737455454840,-905.56,0.00020758,2]
[349833742,1737455454849,-2404.18,0.00020758,2]
[349833743,1737455454858,-841.45,0.00020758,2]
[349833744,1737455454867,-844.09,0.00020758,2]
[349833745,1737455454876,-711.51,0.00020758,2]
[349833746,1737455454886,-934.55,0.00020758,2]
[349833747,1737455454895,-908.64,0.00020758,2]
[349833748,1737455454905,-500.0,0.00020759,2]
[349833749,1737455454914,-500.0,0.00020759,2]
[349833750,1737455454923,-500.0,0.00020759,2]
[349833751,1737455454932,-225.11,0.00020759,2]
[349833752,1737455454941,-500.0,0.00020759,2]
[349833753,1737455454951,-500.0,0.00020759,2]
[349833754,1737455454960,-500.0,0.00020759,2]
[349833755,1737455454969,-500.0,0.00020759,2]
[349833756,1737455454979,-500.0,0.00020759,2]
[349833757,1737455454988,-500.0,0.00020759,2]
[349833758,1737455454997,-1407.85,0.00020759,2]
[349833759,1737455455008,-500.0,0.00020759,2]
[349833760,1737455455017,-500.0,0.00020759,2]
[349833761,1737455455027,-622.64,0.00020759,2]
[349833762,1737455455036,-667.61,0.00020759,2]
[349833763,1737455455045,-500.0,0.00020759,2]
[349833764,1737455455055,-1000.0,0.00020759,2]
[349833765,1737455455063,-766.15,0.00020759,2]
[349833766,1737455455073,-500.0,0.00020759,2]
[349833767,1737455455082,-500.0,0.00020759,2]
[349833768,1737455455091,-1281.06,0.00020759,2]
[349833769,1737455455100,-500.0,0.0002076,2]
[349833770,1737455455109,-500.0,0.0002076,2]
[349833771,1737455455119,-500.0,0.0002076,2]
[349833772,1737455455128,-500.0,0.0002076,2]
[349833773,1737455455137,-500.0,0.0002076,2]
[349833774,1737455455146,-500.0,0.0002076,2]
[349833775,1737455455156,-500.0,0.0002076,2]
[349833776,1737455455166,-500.0,0.0002076,2]
[349833777,1737455455175,-500.0,0.0002076,2]
[349833778,1737455455184,-500.0,0.0002076,2]
[349833779,1737455455193,-500.0,0.0002076,2]
[349833780,1737455455203,-500.0,0.0002076,2]
[349833781,1737455455212,-500.0,0.0002076,2]
[349833782,1737455455222,-500.0,0.0002076,2]
[349833783,1737455455231,-500.0,0.0002076,2]
[349833784,1737455455242,-500.0,0.0002076,2]
[349833785,1737455455251,-500.0,0.0002076,2]
[349833786,1737455455261,-500.0,0.0002076,2]
[349833787,1737455455271,-500.0,0.0002076,2]
[349833788,1737455455280,-500.0,0.0002076,2]
[349833789,1737455455289,-500.0,0.0002076,2]
[349833790,1737455455298,-500.0,0.0002076,2]
[349833791,1737455455308,-445.42149753,0.0002076,2]
[349833792,1737455455317,-723.84,0.0002076,2]
[349833793,1737455455326,-1160.98,0.0002076,2]
[349833794,1737455455335,-500.0,0.0002076,2]
[349833795,1737455455344,-724.95,0.0002076,2]
[349833796,1737455455353,-477.56,0.0002076,2]
[349833797,1737455455363,-500.0,0.0002076,2]
[349833798,1737455455371,-1973.65,0.0002076,2]
[349833799,1737455455381,-519.24074904,0.0002076,2]
[349833800,1737455455390,-542.89,0.0002076,2]
[349833801,1737455455399,-763.12,0.0002076,2]
[349833802,1737455455409,-500.0,0.0002076,2]
[349833803,1737455455418,-500.0,0.0002076,2]
[349833804,1737455455428,-1105.07,0.0002076,2]
[349833805,1737455455441,-500.0,0.0002076,2]
[349833806,1737455455450,-500.0,0.0002076,2]
[349833807,1737455455459,-807.04,0.0002076,2]
[349833808,1737455455469,-500.0,0.0002076,2]
[349833809,1737455455480,-462.42688344,0.0002076,2]
[349833810,1737455455489,-500.0,0.0002076,2]
[349833811,1737455455499,-500.0,0.0002076,2]
[349833812,1737455455509,-997.87,0.0002076,2]
[349833813,1737455455518,-500.0,0.0002076,2]
[349833814,1737455455528,-500.0,0.0002076,2]
[349833815,1737455455537,-500.0,0.0002076,2]
[349833816,1737455455546,-500.0,0.0002076,2]
[349833817,1737455455555,-500.0,0.0002076,2]
[349833818,1737455455565,-500.0,0.0002076,2]
[349833819,1737455455574,-634.09,0.0002076,2]
[349833820,1737455455584,-500.0,0.0002076,2]
[349833821,1737455455593,-500.0,0.0002076,2]
[349833822,1737455455602,-500.0,0.0002076,2]
[349833823,1737455455611,-500.0,0.0002076,2]
[349833824,1737455455620,-500.0,0.0002076,2]
[349833825,1737455455630,-500.0,0.0002076,2]
[349833826,1737455455639,-522.9,0.0002076,2]
[349833827,1737455455648,-500.0,0.0002076,2]
[349833828,1737455455658,-500.0,0.0002076,2]
[349833829,1737455455667,-500.0,0.0002076,2]
[349833830,1737455455676,-500.0,0.0002076,2]
[349833831,1737455455685,-500.0,0.0002076,2]
[349833832,1737455455694,-500.0,0.0002076,2]
[349833833,1737455455703,-632.31,0.0002076,2]
[349833834,1737455455712,-537.56,0.0002076,2]
[349833835,1737455455722,-500.0,0.0002076,2]
[349833836,1737455455731,-500.0,0.0002076,2]
[349833837,1737455455741,-924.73,0.0002076,2]
[349833838,1737455455750,-500.0,0.0002076,2]
[349833839,1737455455760,-500.0,0.0002076,2]
[349833840,1737455455769,-638.62,0.0002076,2]
[349833841,1737455455779,-500.0,0.0002076,2]
[349833842,1737455455788,-500.0,0.0002076,2]
[349833843,1737455455797,-1669.61,0.0002076,2]
[349833844,1737455455807,-500.0,0.0002076,2]
[349833845,1737455455816,-500.0,0.0002076,2]
[349833846,1737455455826,-2780.73,0.0002076,2]
[349833847,1737455455835,-500.0,0.00020761,2]
[349833848,1737455455845,-150.0,0.00020773,2]
[349833849,1737455455854,-297.0,0.000208,2]
[349833850,1737455455864,-169.19,0.00020802,2]
[349833851,1737455455873,-150.0,0.00020806,2]
[349833852,1737455455883,-896.64,0.00020821,2]
[349833853,1737455455893,-802.54,0.00020821,2]
[349833854,1737455455903,-599.33,0.00020821,2]
[349833855,1737455455914,-1130.76,0.00020821,2]
[349833856,1737455455923,-1764.8,0.00020821,2]
[349833857,1737455455933,-1170.87,0.00020821,2]
[349833858,1737455455943,-1935.46,0.00020821,2]
[349833859,1737455455953,-500.0,0.00020821,2]
[349833860,1737455455962,-1397.15,0.00020821,2]
[349833861,1737455455971,-888.75,0.00020821,2]
[349833862,1737455455981,-997.88,0.00020821,2]
[349833863,1737455455991,-709.63,0.00020821,2]
[349833864,1737455456000,-902.94,0.00020821,2]
[349833865,1737455456010,-2544.76,0.00020821,2]
[349833866,1737455456020,-850.52,0.00020821,2]
[349833867,1737455456030,-2292.3,0.00020821,2]
[349833868,1737455456040,-500.0,0.00020821,2]
[349833869,1737455456050,-543.61,0.00020821,2]
[349833870,1737455456059,-500.0,0.00020821,2]
[349833871,1737455456069,-500.97,0.00020821,2]
[349833872,1737455456079,-1534.04,0.00020821,2]
[349833873,1737455456089,-166.8928346,0.00020821,2]
[349833874,1737455456099,-500.0,0.00020821,2]
[349833875,1737455456109,-1237.06,0.00020821,2]
[349833876,1737455456118,-771.69,0.00020852,2]
[349833877,1737455456127,-1000.0,0.000209,7]
[349833878,1737455456137,-8115.2225,0.00020934,2]
[349833879,1737455456146,-1000.0,0.00020935,2]
[349833880,1737455456157,-150.0,0.00020961,2]
[349833881,1737455456167,-636.0,0.00020961,2]
[349833882,1737455456176,-567.0,0.00020961,2]
[349833883,1737455456185,-1864.0,0.00020961,2]
[349833884,1737455456195,-1261.0,0.00020961,2]
[349833885,1737455456204,-907.0,0.00020961,2]
[349833886,1737455456213,-781.0,0.00020961,2]
[349833887,1737455456223,-2948.0,0.00020961,2]
[349833888,1737455456232,-3984.0,0.00020961,2]
[349833889,1737455456241,-537.0,0.00020961,2]
[349833890,1737455456251,-1106.0,0.00020961,2]
[349833891,1737455456261,-3902.0,0.00020961,2]
[349833892,1737455456271,-152.519,0.00020961,2]
[349833893,1737455456280,-637.0,0.00020961,2]
[349833894,1737455456290,-2029.228,0.00020961,2]
[349833895,1737455456299,-611.91542477,0.00020993,2]
[349833896,1737455456308,-500.0,0.00020993,2]
[349833897,1737455456318,-187.9,0.00020993,2]
[349833898,1737455456327,-500.0,0.00020993,2]
[349833899,1737455456336,-500.0,0.00020993,2]
[349833900,1737455456346,-500.0,0.00020993,2]
[349833901,1737455456355,-355.39239707,0.00020993,2]
[349833902,1737455456364,-500.0,0.00020993,2]
[349833903,1737455456373,-500.0,0.00020993,2]
[349833904,1737455456383,-500.0,0.00020993,2]
[349833905,1737455456392,-604.75,0.00020993,2]
[349833906,1737455456403,-499.12,0.00020993,2]
[349833907,1737455456412,-500.0,0.00020993,2]
[349833908,1737455456422,-500.0,0.00020993,2]
[349833909,1737455456434,-231.77,0.00020993,2]
[349833910,1737455456443,-196.05,0.00020993,2]
[349833911,1737455456452,-500.0,0.00020993,2]
[349833912,1737455456463,-510.43,0.00020993,2]
[349833913,1737455456473,-849.01,0.00020993,2]
[349833914,1737455456482,-500.0,0.00020993,2]
[349833915,1737455456491,-500.0,0.00020993,2]
[349833916,1737455456502,-500.0,0.00020993,2]
[349833917,1737455456511,-500.0,0.00020993,2]
[349833918,1737455456521,-500.0,0.00020993,2]
[349833919,1737455456531,-500.0,0.00020993,2]
[349833920,1737455456540,-624.78146743,0.00020993,2]
[349833921,1737455456549,-500.0,0.00020993,2]
[349833922,1737455456559,-500.0,0.00020993,2]
[349833923,1737455456568,-500.0,0.00020993,2]
[349833924,1737455456577,-601.11481853,0.00020993,2]
[349833925,1737455456586,-500.0,0.00020993,2]
[349833926,1737455456595,-500.0,0.00020993,2]
[349833927,1737455456605,-500.0,0.00020993,2]
[349833928,1737455456614,-500.0,0.00020993,2]
[349833929,1737455456623,-500.0,0.00020993,2]
[349833930,1737455456632,-500.0,0.00020993,2]
[349833931,1737455456796,-1799.36,0.00020993,2]
[349833932,1737455456806,-500.0,0.00020993,2]
[349833933,1737455456816,-530.60331697,0.00020993,2]
[349833934,1737455456826,-2685.0,0.00020993,2]
[349833935,1737455456837,-300.0,0.00020993,2]
[349833936,1737455456847,-500.0,0.00020993,2]
[349833937,1737455456857,-528.56,0.00020993,2]
[349833938,1737455456867,-517.29758797,0.00020993,2]
[349833939,1737455456877,-500.0,0.00020993,2]
[349833940,1737455456887,-511.02399426,0.00020993,2]
[349833941,1737455456897,-500.0,0.00020993,2]
[349833942,1737455456909,-1519.25,0.00020993,2]
[349833943,1737455456920,-500.0,0.00020993,2]
[349833944,1737455456929,-500.0,0.00020993,2]
[349833945,1737455456939,-500.0,0.00020993,2]
[349833946,1737455456948,-500.0,0.00020993,2]
[349833947,1737455456958,-500.0,0.00020993,2]
[349833948,1737455456968,-500.0,0.00020993,2]
[349833949,1737455456977,-500.0,0.00020993,2]
[349833950,1737455456987,-500.0,0.00020993,2]
[349833951,1737455456997,-500.0,0.00020993,2]
[349833952,1737455457007,-500.0,0.00020993,2]
[349833953,1737455457017,-500.0,0.00020993,2]
[349833954,1737455457027,-1429.36,0.00020993,2]
[349833955,1737455457038,-500.0,0.00020993,2]
[349833956,1737455457048,-522.62894212,0.00020993,2]
[349833957,1737455457057,-500.0,0.00020993,2]
[349833958,1737455457067,-500.0,0.00020993,2]
[349833959,1737455457077,-333.19629098,0.00020993,2]
[349833960,1737455457086,-150.64022147,0.00020993,2]
[349833961,1737455457096,-500.0,0.00020993,2]
[349833962,1737455457106,-500.0,0.00020993,2]
[349833963,1737455457116,-500.0,0.00020993,2]
[349833964,1737455457125,-508.99974634,0.00020993,2]
[349833965,1737455457135,-505.51609333,0.00020993,2]
[349833966,1737455457146,-500.0,0.00020993,2]
[349833967,1737455457159,-169.47702878,0.00020993,2]
[349833968,1737455457169,-500.0,0.00020993,2]